Cogmind - Beta 17 @@@ ROGUE MODE // 2026.07.14 @ 12:21:35 Player: rz Result: Destroyed by P-80 Master with Gamma Rifle Performance ------------- Evolutions (7) 3500 Regions Visited (11) 2200 Robots Destroyed (61) 305 Value Destroyed (2476) 2476 Prototype IDs (9) 180 Alien Tech Used (0) 0 Bonus (14119) 14119 TOTAL SCORE: 22780 Bonus ------- Follower Combat Kills 1313 Prayed to X0-1V1 5000 Major X0-1V1 Interference 7450 Entered DSFs 500 Friendly Fire -144 Cogmind --------- Core Integrity 0/1175 Matter 218/300 Energy 99/100 System Corruption 21% Temperature Cool (0) Movement Core (50) Location -3/Research Parts ------- > --- POWER (2) -------- (None) > --- PROPULSION (8) --- (None) > --- UTILITY (9) ------ (None) > --- WEAPON (3) ------- (None) > --- INVENTORY (5) ---- Light Antimatter Reactor Particle Reactor Advanced Recalibrator Hypervelocity Mass Driver Peak State ------------ > --- POWER ------------ Light Antimatter Reactor Light Antimatter Reactor > --- PROPULSION ------- Gravmag Array Combat Gravmag System Combat Gravmag System Combat Gravmag System Combat Gravmag System Combat Gravmag System Improved Antigrav System > --- UTILITY ---------- Advanced Coolant Injector High-capacity Storage Unit Experimental Signal Interpreter Cloaking Device Graphene Brace Advanced Focal Shield Advanced Thermal Shield Improved Component Analysis Suite X0-1V1's Piety Tracker > --- WEAPON ----------- Katana Katana Falx Falx Falx > --- INVENTORY -------- Light Antimatter Reactor Improved Fusion Compressor Particle Reactor Xenon Bombardment Thruster Xenon Bombardment Thruster Xenon Bombardment Thruster Xenon Bombardment Thruster Xenon Bombardment Thruster Xenon Bombardment Thruster Xenon Bombardment Thruster Xenon Bombardment Thruster Xenon Bombardment Thruster Diametric Drive Stasis Canceller Stasis Canceller Experimental ECM Suite Experimental ECM Suite Focal Shield Thermal Shield Advanced Recalibrator [Rating: 154] Favorites ----------- Power Ion Engine Engine Ion Engine Power Core Fusion Compressor Reactor Light Antimatter Reactor Propulsion Combat Gravmag System Treads Light Treads Leg Improved VSS Leg Hover Unit Combat Gravmag System Flight Unit Xenon Bombardment Thruster Utility X0-1V1's Piety Tracker Device X0-1V1's Piety Tracker Storage Huge Storage Unit Processor Experimental Signal Interpreter Protection Medium Armor Plating Weapon Minigun Energy Gun Small Laser Energy Cannon Heavy Particle Cannon Ballistic Gun Minigun Ballistic Cannon Siege Cannon Launcher Grenade Launcher Impact Weapon Heavy Mace Slashing Weapon Falx Build | -11 -10 -10 -8 -8 -6 -6 -5 -4 -4 -4 -3 ------- Run | Yrd Mat Sub Rec Scr Fac DSF Fac Fac Upp Upp Res Slots Evolved 14 | . . . . . 8 . 2 2 . . 2 Power 1 | . . . . . 1 . . . . . . Propulsion 6 | . . . . . 3 . 1 1 . . 1 Utility 6 | . . . . . 3 . 1 1 . . 1 Weapon 1 | . . . . . 1 . . . . . . Parts Attached 141 | 6 2 6 20 14 11 5 24 9 7 . 37 Power 24 | 1 . . 4 2 2 . 4 3 . . 8 Engine 5 | 1 . . 3 1 . . . . . . . Core 8 | . . . 1 1 1 . 4 . . . 1 Reactor 11 | . . . . . 1 . . 3 . . 7 Propulsion 47 | 2 . 1 4 2 6 4 11 1 2 . 14 Treads 8 | 2 . 1 4 1 . . . . . . . Leg 5 | . . . . . 5 . . . . . . Wheel . | . . . . . . . . . . . . Hover 17 | . . . . 1 . . 11 1 2 . 2 Flight 17 | . . . . . 1 4 . . . . 12 Utility 46 | 1 2 1 4 7 2 . 6 5 5 . 13 Device 32 | . 1 1 1 4 . . 5 5 3 . 12 Storage 3 | 1 1 . . . . . 1 . . . . Processor 2 | . . . . . 1 . . . . . 1 Hackware . | . . . . . . . . . . . . Protection 9 | . . . 3 3 1 . . . 2 . . Artifact . | . . . . . . . . . . . . Weapon 24 | 2 . 4 8 3 1 1 3 . . . 2 Energy Gun 1 | 1 . . . . . . . . . . . Energy Cannon 3 | . . . 3 . . . . . . . . Ballistic Gun 9 | 1 . 1 5 2 . . . . . . . Ballistic Cannon 1 | . . . . . 1 . . . . . . Launcher 4 | . . 3 . 1 . . . . . . . Special Weapon . | . . . . . . . . . . . . Impact Weapon 1 | . . . . . . 1 . . . . . Slashing Weapon 5 | . . . . . . . 3 . . . 2 Piercing Weapon . | . . . . . . . . . . . . Special Melee Weapon . | . . . . . . . . . . . . Unidentified Prototypes 6 | . 1 . . . 3 . 1 . . . 1 Parts Lost 66 | . . 4 15 6 . . 10 1 . . 30 Power 9 | . . . 2 1 . . 1 1 . . 4 Propulsion 23 | . . 1 3 2 . . 2 . . . 15 Utility 24 | . . 1 3 2 . . 7 . . . 11 Weapon 10 | . . 2 7 1 . . . . . . . Highest Loss Streak 11 | . . 4 6 3 . . 4 1 . . 11 To Critical Strikes . | . . . . . . . . . . . . Average Backups 15 | . 7 11 20 18 2 4 4 7 14 16 12 Power 4 | . 2 4 5 5 . . . . 2 2 2 Propulsion 2 | . . 1 4 1 1 3 3 3 3 3 4 Utility 3 | . . 1 1 5 . . . 2 7 9 5 Weapon 4 | . 4 5 8 5 . . . 1 2 2 . Tool/Special . | . . . . . . . . . . . . Unused Backups 31 | . . . 2 13 . 3 . . . . 13 Power 5 | . . . . 3 . . . . . . 2 Propulsion 8 | . . . 1 1 . 3 . . . . 3 Utility 12 | . . . . 5 . . . . . . 7 Weapon 5 | . . . 1 3 . . . . . . 1 Tool/Special 1 | . . . . 1 . . . . . . . Average Slot Usage (%) 88 | . 85 88 93 90 48 75 72 94 99 100 87 Engine 7 | . 14 14 10 10 . . . . . . . Reactor 1 | . . . . . . 6 3 3 10 10 7 Treads 15 | . 28 28 23 21 . . . . . . . Hover 7 | . . . . . . . 25 35 35 35 21 Flight 1 | . . . . . 4 8 4 . . . 8 Device 14 | . . 3 12 11 12 12 17 29 31 30 28 Storage 8 | . 14 14 11 10 . . . 5 5 5 2 Protection 4 | . . . 5 9 6 10 1 . 2 5 . Energy Gun 1 | . 14 3 1 . . . . . . . . Energy Cannon 4 | . . . 15 . . . . . . . . Ballistic Gun 9 | . 14 4 5 23 . . . . . . . Launcher 1 | . . 20 4 . . . . . . . . Slashing Weapon 4 | . . . 1 2 . . 12 15 15 15 13 Peak Build Rating 154 | 6 20 20 36 41 91 91 95 125 128 129 154 Average Rating 53 | 4 6 9 28 32 58 83 80 115 125 128 133 On Entrance 61 | . 6 20 20 36 25 91 67 89 125 128 129 Avg Prop Armor Cover (%) 4 | . . . . . 7 . 3 . . . 5 Naked Turns 52 | . . . . 43 . . . . . . 9 Heaviest Build 119 | 10 90 90 101 107 58 58 65 90 99 99 119 Greatest Support 116 | 40 40 40 42 42 75 75 78 95 105 105 116 Greatest Overweight (x) 4 | . 2 2 4 4 1 2 1 . . . 1 Average Overweight (x) . | . 1 2 2 1 . . . . . . . Largest Inventory Capacity 25 | 8 25 25 25 25 5 5 20 20 20 20 20 Average Capacity 20 | 7 24 25 25 23 5 5 5 20 20 20 15 Most Carried 25 | 2 14 14 25 22 5 5 6 14 20 20 20 Average Carried 15 | . 7 11 20 18 4 4 4 8 17 19 13 Final Capacity 25 | 8 25 25 25 5 5 5 20 20 20 20 5 Final Carried 20 | 2 14 11 17 5 4 5 6 14 19 20 4 Class Distribution -------------------- 68% | Mutant 9% | Tank 8% | Gunner 6% | Scavenger-Mutant Dominant Class ---------------- Mutant | -10/Materials Mutant | -10/Subcaves Mutant | -8/Recycling Mutant | -8/Scraptown Tank | -6/Factory Tank | -6/DSF Mutant | -5/Factory Mutant | -4/Factory Scavenger-Mutant | -4/Upper Caves Scavenger-Mutant | -4/Upper Caves Mutant | -3/Research Resources | -11 -10 -10 -8 -8 -6 -6 -5 -4 -4 -4 -3 ----------- Run | Yrd Mat Sub Rec Scr Fac DSF Fac Fac Upp Upp Res Matter Collected 2693 | 210 79 1 468 274 . . 525 268 403 . 465 Remotely . | . . . . . . . . . . . . Salvage Created 3153 | . 189 10 813 98 . 202 364 157 . 80 1240 Parts 128 | . 13 1 40 3 . 5 12 8 . . 46 Haulers Intercepted 3 | . 1 . . . . . 1 . . . 1 Recyclers Shooed 1 | . . . 1 . . . . . . . . Parts Field Recycled . | . . . . . . . . . . . . Retrieved Matter . | . . . . . . . . . . . . Parts Self-Destructed 9 | . . 1 . . . . . . 8 . . Prevented . | . . . . . . . . . . . . Parts Restored . | . . . . . . . . . . . . Kills | -11 -10 -10 -8 -8 -6 -6 -5 -4 -4 -4 -3 ------- Run | Yrd Mat Sub Rec Scr Fac DSF Fac Fac Upp Upp Res Combat Hostiles Destroyed 49 | . 3 3 14 3 . 1 2 2 . 1 20 Melee 23 | . . . . . . . 2 2 . 1 18 Guns 7 | . 3 . 4 . . . . . . . . Cannons 4 | . . . 4 . . . . . . . . AOE 12 | . . 3 6 3 . . . . . . . Classes Destroyed 15 | . 4 1 4 3 . 1 1 . . . 1 Builder 2 | . . . 2 . . . . . . . . Hauler 3 | . 1 . . . . . 1 . . . 1 Recycler 6 | . 1 . 3 . . . 1 . . . 1 Drone 1 | . . . 1 . . . . . . . . Turret 2 | . . 2 . . . . . . . . . Swarmer 17 | . 2 3 . . . . . . . . 12 Cutter 1 | . . . . . . . . . . . 1 Grunt 4 | . 1 . 3 . . . . . . . . Sentry 12 | . . . 7 . . . . 1 . . 4 Specialist 1 | . . . . . . 1 . . . . . Hunter 5 | . . . 3 . . . . 1 . . 1 Programmer 4 | . . . . . . . 2 . . . 2 Explorer 1 | . . . . 1 . . . . . . . Ranger 1 | . . . . 1 . . . . . . . Scrapper 2 | . . . . 1 . . . . . 1 . Best Kill Streak 7 | . 2 5 7 3 . 1 2 1 . 1 6 Combat Bots Only 6 | . 2 3 4 3 . 1 2 1 . 1 6 Max Kills in Single Turn 2 | . 1 1 2 1 . 1 1 1 . 1 1 Gunslinging . | . . . . . . . . . . . . Exploded 2 | . . 1 2 1 . . . . . . . Melee 1 | . . . . . . . 1 1 . 1 1 Uniques/NPCs Destroyed 1 | . . . . 1 . . . . . . . Triborg (-8/Scraptown) Combat | -11 -10 -10 -8 -8 -6 -6 -5 -4 -4 -4 -3 -------- Run | Yrd Mat Sub Rec Scr Fac DSF Fac Fac Upp Upp Res Hostile Shots Fired 897 | . 24 97 102 49 . 33 132 16 4 12 428 Missed 304 | . 5 39 25 13 . 10 60 8 2 9 133 Hits 593 | . 19 58 77 36 . 23 72 8 2 3 295 Melee 23 | . . . 7 7 . . . . . . 9 Projectile 570 | . 19 58 70 29 . 23 72 8 2 3 286 AOE 3 | . . . . . . 2 . . . . 1 Critical Strikes 20 | . . . 1 2 . 1 5 1 . . 10 Actively Blocked 8 | . . . . . . . . . . . 8 Part Disruptions 2 | . . . . . . 1 1 . . . . Damage Taken 9041 | . 175 482 1106 520 . 644 1231 335 44 56 4448 Core 2156 | . 30 61 65 151 . 149 208 79 . 16 1397 Absorbed by Shields 550 | . . . . . . 23 . . . . 527 Redirected to Shielding 13 | . . . . . . 13 . . . . . Ignored by Resistances 1592 | . . . . . . . 37 57 18 17 1463 Core Remaining (%) 79 | 100 . . . 54 . 79 76 . . 90 . Volleys Fired 85 | . 19 11 36 9 1 9 . . . . . Largest 5 | . 2 2 5 2 1 1 . . . . . Hottest 203 | . 60 70 203 58 65 65 . . . . . Shots Fired 193 | . 38 22 105 18 1 9 . . . . . Gun 125 | . 38 10 63 14 . . . . . . . Cannon 38 | . . . 28 . 1 9 . . . . . Launcher 30 | . . 12 14 4 . . . . . . . Special . | . . . . . . . . . . . . Kinetic 98 | . 19 6 49 14 1 9 . . . . . Thermal 51 | . 19 4 28 . . . . . . . . Explosive 30 | . . 12 14 4 . . . . . . . Electromagnetic 14 | . . . 14 . . . . . . . . Robot Hit Streak 17 | . 6 6 17 5 . 1 . . . . . Robot Miss Streak 5 | . 3 5 4 2 . 4 . . . . . Penetration Max . | . . . . . . . . . . . . Secondary Targets . | . . . . . . . . . . . . Shots Hit Robots 219 | . 21 12 65 12 . 2 9 12 3 4 79 Core Hits 105 | . 8 13 37 7 . 1 4 4 . 2 29 Critical Kills . | . . . . . . . . . . . . Critical Parts Destroyed 3 | . . . . . . . . . . . 3 Critical Strikes 19 | . . . . . . . . 3 . . 16 Smash 3 | . . . . . . . . . . . 3 Sever 16 | . . . . . . . . 3 . . 13 Melee Attacks 154 | . . . . . . . 12 14 3 6 119 Impact 10 | . . . . . . . 1 . . . 9 Slashing 144 | . . . . . . . 11 14 3 6 110 Piercing . | . . . . . . . . . . . . Sneak Attacks 8 | . . . . . . . 3 3 . . 2 Combat Hostiles . | . . . . . . . . . . . . Follow-up Attacks 35 | . . . . . . . 2 3 1 2 27 Damage Inflicted 8044 | . 203 468 1756 366 . 375 531 655 126 159 3405 Guns 917 | . 203 70 481 163 . . . . . . . Cannons 862 | . . . 487 . . 375 . . . . . Explosions 1389 | . . 398 788 203 . . . . . . . Melee 4875 | . . . . . . . 531 655 126 159 3404 Ramming 1 | . . . . . . . . . . . 1 Kinetic 985 | . 83 35 329 163 . 375 . . . . . Thermal 642 | . 120 35 487 . . . . . . . . Explosive 1389 | . . 398 788 203 . . . . . . . Electromagnetic 152 | . . . 152 . . . . . . . . Impact 395 | . . . . . . . 91 . . . 304 Slashing 4480 | . . . . . . . 440 655 126 159 3100 Piercing . | . . . . . . . . . . . . Highest Corruption 20 | . . . 3 . . 1 6 . . 10 20 Average Corruption 6 | . . . 3 . . 1 3 . . 9 9 Corruption Purged . | . . . . . . . . . . . . Corruption Blocked . | . . . . . . . . . . . . Effects 38 | . . . . . . 1 7 . . 2 28 Message Errors 12 | . . . . . . 1 2 . . 1 8 Matter Fused 9 | . . . . . . . 1 . . . 8 Heat Flow Errors 5 | . . . . . . . 2 . . 1 2 Energy Discharges 5 | . . . . . . . 1 . . . 4 Data Loss (minor) 5 | . . . . . . . 1 . . . 4 Misdirections 2 | . . . . . . . . . . . 2 Overload Shots . | . . . . . . . . . . . . Overflow Damage 479 | . . 72 24 . . 25 87 5 . . 266 Projectiles 25 | . . . . . . 25 . . . . . Explosions 96 | . . 72 24 . . . . . . . . Melee 358 | . . . . . . . 87 5 . . 266 Knockbacks 6 | . . . . . . 3 1 . . . 2 Impact 3 | . . . . . . . 1 . . . 2 Kinetic 2 | . . . . . . 2 . . . . . Secondary 1 | . . . . . . 1 . . . . . Self-Inflicted Damage 164 | . . 39 125 . . . . . . . . Shots 6 | . . 1 5 . . . . . . . . Rammed 1 | . . . . . . . . . . . 1 Targets Rammed 1 | . . . . . . . . . . . 1 Kicked . | . . . . . . . . . . . . Crushed . | . . . . . . . . . . . . Highest Temperature 495 | . 94 9 495 . . . 200 . . 223 148 Average Temperature 78 | . 35 5 116 . . . 110 . . 104 33 Received Heat Transfer 1164 | . 54 198 246 111 . 99 105 33 18 24 276 Effects 7 | . . . 7 . . . . . . . . Shutdowns 1 | . . . 1 . . . . . . . . Energy Bleed 1 | . . . 1 . . . . . . . . Short Circuit 1 | . . . 1 . . . . . . . . Damage (major) 4 | . . . 4 . . . . . . . . Siege Activations . | . . . . . . . . . . . . Martial Activations . | . . . . . . . . . . . . Shielding Activations . | . . . . . . . . . . . . Robots Disrupted . | . . . . . . . . . . . . Combat Hostiles . | . . . . . . . . . . . . Robots Corrupted 3 | . . . . . . . 1 . . . 2 Combat Hostiles 2 | . . . . . . . . . . . 2 Parts Fried 5 | . . . 1 . . . 3 . . . 1 Impact Corruptions 7 | . . . . . . . 1 . . . 6 Robots Melted . | . . . . . . . . . . . . Combat Hostiles . | . . . . . . . . . . . . Parts Melted 3 | . . . 1 2 . . . . . . . Heat Transferred 1127 | . 275 75 777 . . . . . . . . Parts Sabotaged . | . . . . . . . . . . . . Parts Stolen . | . . . . . . . . . . . . Parts Stripped . | . . . . . . . . . . . . Power Chain Reactions . | . . . . . . . . . . . . Alert | -11 -10 -10 -8 -8 -6 -6 -5 -4 -4 -4 -3 ------- Run | Yrd Mat Sub Rec Scr Fac DSF Fac Fac Upp Upp Res Maximum Alert Level 1 | . . . 1 . . . . . . . 1 Low Security (%) 74 | 100 100 . 79 . 100 100 100 100 . . 23 Level 1 25 | . . . 20 . . . . . . . 76 Level 2 . | . . . . . . . . . . . . Level 3 . | . . . . . . . . . . . . Level 4 . | . . . . . . . . . . . . Level 5 . | . . . . . . . . . . . . High Security . | . . . . . . . . . . . . Max Security . | . . . . . . . . . . . . Peak Influence 374 | . 30 . 374 . 2 118 100 154 . . 348 Initial 61 | . . . 14 . . 3 61 49 . . . Average 98 | . 5 . 92 . . 57 56 44 . . 221 Influence Increases 2585 | . 82 130 661 . 7 115 319 235 58 20 958 Destroy 0b10 Robot/C 1120 | . 60 100 280 . . 20 40 140 40 20 420 Destroy 0b10 Robot/NC 75 | . 10 . 25 . . 5 10 15 . . 10 Destroy Leader 158 | . 12 . . . . . 10 24 10 . 102 Allied During Kill 45 | . . . . . . . . 34 8 . 3 Successful Hack 45 | . . . . . 5 . . 12 . . 28 Disable Machine 60 | . . . 45 . . 15 . . . . . Destroy Structure 105 | . . . 54 . 2 15 4 10 . . 20 Partial Spotted 30 | . . . 15 . . . . . . . 15 Lose Combat Pursuer 705 | . . 30 . . . 60 255 . . . 360 Miscellaneous 242 | . . . 242 . . . . . . . . Influence Decreases 2321 | . 82 100 383 308 2 2 337 181 208 22 696 Entered New Map 496 | . . . 16 308 . 2 57 51 58 2 2 Time Decay 1145 | . 82 60 237 . 2 . 180 110 100 20 354 Lost Part 580 | . . 40 130 . . . 100 10 . . 300 Lost Ally 100 | . . . . . . . . 10 50 . 40 Squads Dispatched 16 | . 1 . 1 . . 2 2 4 . . 6 Investigation 1 | . . . 1 . . . . . . . . Extermination 5 | . . . . . . . 1 . . . 4 Reinforcement 10 | . 1 . . . . 2 1 4 . . 2 Assault . | . . . . . . . . . . . . Garrison . | . . . . . . . . . . . . Intercept . | . . . . . . . . . . . . Searches Triggered . | . . . . . . . . . . . . Construction Impeded . | . . . . . . . . . . . . Haulers Reinforced 2 | . . . . . . . . 2 . . . Active Scanning Responses . | . . . . . . . . . . . . Cargo Convoy Interrupts 1 | . . . . . . . . . . . 1 Stealth | -11 -10 -10 -8 -8 -6 -6 -5 -4 -4 -4 -3 --------- Run | Yrd Mat Sub Rec Scr Fac DSF Fac Fac Upp Upp Res Distress Signals 8 | . 1 . . . . . 2 2 . . 3 Communications Jammed . | . . . . . . . . . . . . Distress Signals . | . . . . . . . . . . . . Times Spotted 209 | . 6 6 26 32 . 15 42 10 1 3 68 Peak Tracking Total 15 | . 3 6 4 13 . 10 11 7 1 2 15 Tactical Retreats 29 | . . 1 . . . 2 12 . . . 14 Traps | -11 -10 -10 -8 -8 -6 -6 -5 -4 -4 -4 -3 ------- Run | Yrd Mat Sub Rec Scr Fac DSF Fac Fac Upp Upp Res Traps Triggered 6 | . . . . . . 2 2 1 . . 1 Indirectly . | . . . . . . . . . . . . Trap Hack Attempts . | . . . . . . . . . . . . Triggered . | . . . . . . . . . . . . Disarmed . | . . . . . . . . . . . . Reprogrammed . | . . . . . . . . . . . . Reused . | . . . . . . . . . . . . Traps Extracted . | . . . . . . . . . . . . Installed . | . . . . . . . . . . . . Triggered . | . . . . . . . . . . . . Machines | -11 -10 -10 -8 -8 -6 -6 -5 -4 -4 -4 -3 ---------- Run | Yrd Mat Sub Rec Scr Fac DSF Fac Fac Upp Upp Res Machines Disabled 11 | . . 2 3 5 . 1 . . . . . Max in Single Turn 2 | . . 2 1 . . 1 . . . . . Machines Repaired . | . . . . . . . . . . . . Machines Dismantled . | . . . . . . . . . . . . Machines Sabotaged . | . . . . . . . . . . . . Overloaded Fab Kills . | . . . . . . . . . . . . Hacking | -11 -10 -10 -8 -8 -6 -6 -5 -4 -4 -4 -3 --------- Run | Yrd Mat Sub Rec Scr Fac DSF Fac Fac Upp Upp Res Machines Accessed 15 | . . . 7 . 2 . . 2 . . 4 Terminals 1 | . . . . . 1 . . . . . . Fabricators . | . . . . . . . . . . . . Repair Stations . | . . . . . . . . . . . . Recycling Units 10 | . . . 7 . 1 . . 1 . . 1 Scanalyzers 4 | . . . . . . . . 1 . . 3 Garrison Access . | . . . . . . . . . . . . Total Hacks 24 | . . . 10 . 2 . . 6 . . 6 Successful 12 | . . . 5 . 2 . . 1 . . 4 Failed 12 | . . . 5 . . . . 5 . . 2 Catastrophic 1 | . . . . . . . . . . . 1 Database Lockouts . | . . . . . . . . . . . . Manual 1 | . 1 . . . . . . . . . . Terminals 1 | . . . . . 1 . . . . . . Fabricators . | . . . . . . . . . . . . Repair Stations . | . . . . . . . . . . . . Recycling Units 15 | . . . 10 . 1 . . 3 . . 1 Scanalyzers 8 | . . . . . . . . 3 . . 5 Garrison Access . | . . . . . . . . . . . . Terminal Hacks 1 | . . . . . 1 . . . . . . Open DSF 1 | . . . . . 1 . . . . . . Fabricator Hacks . | . . . . . . . . . . . . Repair Station Hacks . | . . . . . . . . . . . . Recycling Unit Hacks 7 | . . . 5 . 1 . . . . . 1 Retrieve Components 7 | . . . 5 . 1 . . . . . 1 Scanalyzer 4 | . . . . . . . . 1 . . 3 Retrieve Study 4 | . . . . . . . . 1 . . 3 Garrison Access Hacks . | . . . . . . . . . . . . Unauthorized Hacks . | . . . . . . . . . . . . Terminals . | . . . . . . . . . . . . Fabricators . | . . . . . . . . . . . . Repair Stations . | . . . . . . . . . . . . Recycling Units . | . . . . . . . . . . . . Scanalyzers . | . . . . . . . . . . . . Garrison Access . | . . . . . . . . . . . . Data Cores Recovered . | . . . . . . . . . . . . Used . | . . . . . . . . . . . . Hacking Detections 9 | . . . 3 . 1 . . 2 . . 3 Full Trace Events . | . . . . . . . . . . . . Feedback Events . | . . . . . . . . . . . . Feedback Blocked . | . . . . . . . . . . . . Robot Schematics Acquired . | . . . . . . . . . . . . Robots Built . | . . . . . . . . . . . . Authchips . | . . . . . . . . . . . . Time . | . . . . . . . . . . . . Total Robot Build Rating . | . . . . . . . . . . . . Part Schematics Acquired . | . . . . . . . . . . . . Parts Built . | . . . . . . . . . . . . Authchips . | . . . . . . . . . . . . Time . | . . . . . . . . . . . . Total Part Build Rating . | . . . . . . . . . . . . Part Studies Acquired 4 | . . . . . . . . 1 . . 3 Parts Repaired . | . . . . . . . . . . . . Time . | . . . . . . . . . . . . Parts Recycled . | . . . . . . . . . . . . Recycled Matter . | . . . . . . . . . . . . Retrieved Matter . | . . . . . . . . . . . . Retrieved Components 19 | . . . 12 . . . . . . . 7 Parts Scanalyzed . | . . . . . . . . . . . . Part Schematics Acquired . | . . . . . . . . . . . . Parts Damaged . | . . . . . . . . . . . . Bothacking | -11 -10 -10 -8 -8 -6 -6 -5 -4 -4 -4 -3 ------------ Run | Yrd Mat Sub Rec Scr Fac DSF Fac Fac Upp Upp Res Used RIF Installer . | . . . . . . . . . . . . Robots Hacked . | . . . . . . . . . . . . Non-combat . | . . . . . . . . . . . . Combat . | . . . . . . . . . . . . Robot Hacks Applied . | . . . . . . . . . . . . Relay Couplers Released . | . . . . . . . . . . . . Fabnet Peak Effective % . | . . . . . . . . . . . . Robots Rewired . | . . . . . . . . . . . . Allies Hacked . | . . . . . . . . . . . . Hacks Repelled . | . . . . . . . . . . . . Allies | -11 -10 -10 -8 -8 -6 -6 -5 -4 -4 -4 -3 -------- Run | Yrd Mat Sub Rec Scr Fac DSF Fac Fac Upp Upp Res Total Allies 7 | . . . . 1 . . . 4 . . 2 Largest Group 3 | . . . . 1 . . . 3 3 . 2 Highest-Rated Group 446 | . . . . 446 . . . 179 179 . 94 Highest-Rated Ally 446 | . . . . 446 . . . 60 60 . 47 Total Orders 5 | . . . . . . . . 3 2 . . EXPLORE 5 | . . . . . . . . 3 2 . . Ally Attacks 114 | . . . . 55 . . . 37 13 . 9 Total Damage 5840 | . . . . 4164 . . . 1074 377 . 225 Kills 42 | . . . . 31 . . . 8 2 . 1 Allies Corrupted . | . . . . . . . . . . . . Allies Melted . | . . . . . . . . . . . . X0-1V1 Amusement Gains 210 | . 12 15 . 93 5 . 15 10 . . 60 Good Acts 66 | . . 1 23 2 4 2 12 8 1 . 13 Bad Acts 56 | . . 1 26 1 . 1 8 . . 3 16 Intel | -11 -10 -10 -8 -8 -6 -6 -5 -4 -4 -4 -3 ------- Run | Yrd Mat Sub Rec Scr Fac DSF Fac Fac Upp Upp Res Active Infowar (turns) 1464 | . . . . . 261 115 161 152 198 45 532 Optics 517 | . . . . . 261 115 141 . . . . IFF 20 | . . . . . . . 20 . . . . Terrain 425 | . . . . . . . . 152 198 45 30 Cloaking 422 | . . . . . . . . . . . 422 Jamming 80 | . . . . . . . . . . . 80 Robot Analysis Total . | . . . . . . . . . . . . Derelict Logs Recovered 3 | . . . . . . . . . 3 . . Drone Launches 15 | . . . . . . . . 5 3 . 7 Drone Recoveries 10 | . . . . . . . . 3 1 1 5 Exploration | -11 -10 -10 -8 -8 -6 -6 -5 -4 -4 -4 -3 ------------- Run | Yrd Mat Sub Rec Scr Fac DSF Fac Fac Upp Upp Res Turns Passed 6879 | 70 447 120 1998 2028 271 115 378 230 208 45 969 Spaces Moved 3882 | 39 123 26 569 785 140 114 592 336 271 27 860 Core 246 | 2 . . . 195 34 . . . . . 15 Treads 1338 | 37 123 26 569 583 . . . . . . . Legs 121 | . . . . . 58 63 . . . . . Wheels . | . . . . . . . . . . . . Hover 1573 | . . . . 7 . . 413 336 271 27 519 Flight 604 | . . . . . 48 51 179 . . . 326 Fastest Speed 21 | 50 160 320 317 50 40 28 28 51 51 62 21 Average Speed 142 | 154 308 320 320 251 75 64 48 51 58 62 47 Slowest Speed 490 | 160 320 320 480 490 180 227 105 51 62 62 129 Overloaded Moves . | . . . . . . . . . . . . Propulsion Burnouts . | . . . . . . . . . . . . Robots Hopped 7 | . . . . . . 1 1 . . . 5 Potential Cave-ins . | . . . . . . . . . . . . Cave-ins Triggered . | . . . . . . . . . . . . Exploration Rate (%) 33 | 3 34 2 84 59 2 93 23 18 51 4 30 Regions Visited 11 Branch Regions 5 Pre-discovered Areas . | . . . . . . . . . . . . Known Exits Taken 6 | . . . 1 1 1 . 1 1 1 . . Unknown Exits Taken 4 | 1 1 1 . . . . . . . 1 . Scrap Searched 11 | . . . . 8 . . . . 2 1 . Spaces Dug 15 | . . . . . 2 . 2 . . . 11 Terrain Destroyed 145 | . . 30 77 8 2 15 2 . . . 11 Melee 13 | . . . . . . . 2 . . . 11 Projectile 19 | . . . 2 . 2 15 . . . . . AOE 113 | . . 30 75 8 . . . . . . . Terrain Rammed . | . . . . . . . . . . . . Walls Destroyed . | . . . . . . . . . . . . Machines Disabled . | . . . . . . . . . . . . Actions | -11 -10 -10 -8 -8 -6 -6 -5 -4 -4 -4 -3 --------- Run | Yrd Mat Sub Rec Scr Fac DSF Fac Fac Upp Upp Res Total 4805 | 46 158 43 671 825 302 148 658 370 314 45 1225 Wait 381 | . 2 . 18 . 135 1 6 4 23 14 178 Move 3859 | 38 122 25 568 784 140 112 589 335 270 26 850 Hop 6 | . . . . . . . 1 . . . 5 Pick Up 107 | 2 12 1 19 11 4 5 9 9 3 1 31 Fast Attach 63 | 6 2 1 3 8 9 4 13 2 . . 15 Attach 67 | . . 4 16 4 5 1 6 5 5 . 21 Detach 15 | . . . . . 4 2 3 . 5 . 1 Swap 43 | . . 1 9 2 1 1 9 3 5 . 12 Drop 62 | . 1 . 1 7 3 11 12 1 1 . 25 Fire 85 | . 19 11 36 9 1 9 . . . . . Melee 112 | . . . . . . . 10 10 2 4 86 Ram 1 | . . . . . . . . . . . 1 Kick . | . . . . . . . . . . . . Crush . | . . . . . . . . . . . . Escape Stasis 2 | . . . . . . 2 . . . . . Rewire 2 | . . . 1 . . . . 1 . . . Trap . | . . . . . . . . . . . . Miscellaneous . | . . . . . . . . . . . . Route ------- -11/Scrapyard -10/Materials -10/Subcaves -8/Recycling (discovered 2 exits: Fac / *Scr) -8/Scraptown -6/Factory -6/DSF -5/Factory (discovered 3 exits: *Fac x2 / Ext) -4/Factory -4/Upper Caves -4/Upper Caves -3/Research (discovered 1 exit: Tes) History --------- Turn | Location | Event 13 | -11/Scrapyard | Discovered new exit (range 16) 71 | -11/Scrapyard | Entered Materials 302 | -10/Materials | Build established: Mutant 453 | -10/Materials | Discovered new exit (range 16) 510 | -10/Materials | Prayed at D.C.S.S. Altar Unit 518 | -10/Materials | Entered Subcaves 518 | -10/Subcaves | Discovered new exit (range 9) 581 | -10/Subcaves | Lost 4 parts (1n1u2w) 605 | -10/Subcaves | Heat dissipation permanently improved by X0-1V1 (+15; -75 max core) 638 | -10/Subcaves | Entered Recycling 1383 | -8/Recycling | Utility slot count permanently improved by X0-1V1 (+1) 1807 | -8/Recycling | X0-1V1 added 0b10 threat records associated with you (minor) 1845 | -8/Recycling | X0-1V1 sent someone to keep an eye on you 1871 | -8/Recycling | X0-1V1 sent hostile G-34 Mercenary (x3) 1898 | -8/Recycling | X0-1V1 activates XOMVISION 1903 | -8/Recycling | Identified exit to Factory 1903 | -8/Recycling | X0-1V1 revealed exit location to -6/Factory 2013 | -8/Recycling | Weapon slot count temporarily expanded by X0-1V1 (+3) 2041 | -8/Recycling | X0-1V1 mutated your Weapon slot to Utility slot 2044 | -8/Recycling | Core integrity restored by X0-1V1 (+49) 2048 | -8/Recycling | Identified exit to Scraptown 2048 | -8/Recycling | X0-1V1 revealed exit location to -8/Scraptown 2201 | -8/Recycling | X0-1V1 sent hostile H-55 Commando (x3) 2226 | -8/Recycling | X0-1V1 mutated your Utility slot to Weapon slot 2230 | -8/Recycling | Phase Cannon reconfigured into Item Mimic 2261 | -8/Recycling | Lost 4 parts (1p1u2w) 2265 | -8/Recycling | X0-1V1 activates XOMVISION 2388 | -8/Recycling | X0-1V1 added 0b10 threat records associated with you (minor) 2442 | -8/Recycling | Lost 6 parts (2n1u3w) 2550 | -8/Recycling | Scanned before Scraplab entrance 2607 | -8/Recycling | Entered Scraplab 2636 | -8/Recycling | Entered Scraptown 2724 | -8/Scraptown | Build established: Gunner 3243 | -8/Scraptown | Visited Assassins FH 3329 | -8/Scraptown | Visited The Evicted 3433 | -8/Scraptown | Visited TADAMA 3451 | -8/Scraptown | Build established: Mutant 3525 | -8/Scraptown | Visited Awakened 3661 | -8/Scraptown | Discovered exit to Factory (range 5) 4119 | -8/Scraptown | Visited Bundlers 4269 | -8/Scraptown | Visited Red Mages 4431 | -8/Scraptown | Visited Shadow of the Wyrm 4450 | -8/Scraptown | X0-1V1 brought Wyrm Statue to life 4450 | -8/Scraptown | Attacked by Scraptown defenders 4489 | -8/Scraptown | Lost 3 parts (1n1u1w) 4525 | -8/Scraptown | Allies destroyed Chaos Wyrm 4525 | -8/Scraptown | Released all parts (8) 4535 | -8/Scraptown | Found Prototype Ballistic Cannon 4537 | -8/Scraptown | Core integrity fell below 50% 4539 | -8/Scraptown | Core integrity fell below 20% 4539 | -8/Scraptown | X0-1V1 rescued you from certain death 4664 | -8/Scraptown | Entered Factory 4664 | -6/Factory | Evolved 8 slots: Power x1, Propulsion x3, Utility x3, Weapon x1 4664 | -6/Factory | Identified Siege Cannon 4792 | -6/Factory | Melee accuracy permanently improved by X0-1V1 (+5%; -50 max core) 4845 | -6/Factory | X0-1V1 foreshadows a heat wave 4935 | -6/Factory | Identified exit to DSF 4935 | -6/Factory | Entered DSF 4950 | -6/DSF | Discovered new exit (range 22) 4958 | -6/DSF | Additional patrols routed to DSF 5050 | -6/DSF | Entered Factory 5050 | -5/Factory | Evolved 2 slots: Propulsion x1, Utility x1 5117 | -5/Factory | Spotted B-75 Beast 5120 | -5/Factory | Identified exit to Extension 5120 | -5/Factory | X0-1V1 revealed exit location to -5/Extension 5174 | -5/Factory | Identified exit to Factory 5174 | -5/Factory | X0-1V1 revealed exit location to -4/Factory 5176 | -5/Factory | X0-1V1 tapped a No Entrance sign 5191 | -5/Factory | X0-1V1 upgraded hostiles (x2) 5233 | -5/Factory | X0-1V1 activates XOMVISION 5256 | -5/Factory | X0-1V1 vaporized surrounding terrain (radius 16) 5335 | -5/Factory | X0-1V1 revealed exit location to -4/Factory 5346 | -5/Factory | Lost 4 parts (1p3u) 5390 | -5/Factory | X0-1V1 activates XOMVISION 5428 | -5/Factory | Entered another Factory area 5428 | -4/Factory | Evolved 2 slots: Propulsion x1, Utility x1 5491 | -4/Factory | Identified exit to Upper Caves 5491 | -4/Factory | X0-1V1 revealed exit location to -4/Upper Caves 5578 | -4/Factory | X0-1V1 turns hostiles against one another 5593 | -4/Factory | X0-1V1 released a cloud of subatomizers 5615 | -4/Factory | X0-1V1 sent allied Scrapper (x3) 5635 | -4/Factory | Found Quantum Capacitor 5658 | -4/Factory | Entered Upper Caves 5658 | -4/Upper Caves | Accompanied by 3 allies 5660 | -4/Upper Caves | Spotted B-86 Titan 5672 | -4/Upper Caves | Identified exit to Upper Caves 5672 | -4/Upper Caves | X0-1V1 revealed exit location to -4/Upper Caves 5702 | -4/Upper Caves | Lost 3 allies 5708 | -4/Upper Caves | Attracted the attention of an 0b10 checkpoint 5724 | -4/Upper Caves | Learned 4 Research zone layouts 5756 | -4/Upper Caves | Learned Research terminal intel 5778 | -4/Upper Caves | Learned location of 1 exit from Proximity Caves 5866 | -4/Upper Caves | Entered another Upper Caves area 5866 | -4/Upper Caves | Accompanied by 2 allies 5867 | -4/Upper Caves | X0-1V1 rewrote B2-14W(j) IFF filter 5907 | -4/Upper Caves | Discovered new exit (range 3) 5909 | -4/Upper Caves | System corruption reached 10% 5911 | -4/Upper Caves | Entered Research 5911 | -3/Research | Evolved 2 slots: Propulsion x1, Utility x1 5912 | -3/Research | Identified exit to Testing 5913 | -3/Research | Loaded intel: 20 terminal locations 5926 | -3/Research | X0-1V1 enhanced Transport squad support 5962 | -3/Research | Build established: Scavenger-Mutant 5973 | -3/Research | Found Prototype Processor 6129 | -3/Research | Lost 5 parts (3n2u) 6177 | -3/Research | Identified Exp. Signal Interpreter 6316 | -3/Research | System corruption reached 10% 6317 | -3/Research | Spotted B-86 Titan 6334 | -3/Research | Weapon slot count temporarily expanded by X0-1V1 (+2) 6386 | -3/Research | Build established: Mutant 6405 | -3/Research | X0-1V1 sent allied G-67 Veteran (x2) 6413 | -3/Research | Found Prototype Device 6446 | -3/Research | Identified Exp. ECM Suite 6470 | -3/Research | Found Exp. ECM Suite 6475 | -3/Research | Found Exp. ECM Suite 6608 | -3/Research | Lost 6 parts (2p2n2u) 6645 | -3/Research | X0-1V1 activates XOMVISION 6671 | -3/Research | Found Faulty Exp. ECM Suite 6696 | -3/Research | Core integrity restored by X0-1V1 (+199) 6705 | -3/Research | X0-1V1 sent you into danger 6856 | -3/Research | Core integrity fell below 50% 6856 | -3/Research | Released all parts (12) 6866 | -3/Research | X0-1V1 sent hostile Thug (x2) 6872 | -3/Research | Core integrity fell below 20% 6880 | -3/Research | Cargo convoy interrupted 6880 | -3/Research | Destroyed by P-80 Master with Gamma Rifle Last Messages --------------- DC-YUY(g) form resolidifies at new position. ZY-AQU(g) form resolidifies at new position. 06872_ Focal Shield destroyed. 06874_ R-10 Processor collects Thermal Shield. 06874_ Imp. Surge Thruster destroyed. 06875_ MDX LI BFOLEGOLTP%#&3,Y#9COMJYY|W 06875_ R-10 Processor collects Melee Analysis Suite. X0-1V1's Piety Tracker suddenly appears amidst shimmering waves of color. 06878_ U-05 Engineer lays Concrete. 06879_ C-45 Heavy ARC bursts open, deploying its payload. 06879_ P-80 Master unfolds itself. 06879_ H-77 Assassin unfolds itself. 06879_ Executioner unfolds itself. 06879_ H-77 Assassin unfolds itself. 06880_ ALERT: Cargo convoy interrupted, initiating access lockdown. 06880_ X0-1V1 chortles! Map ----- +----------------------------------------------------+ | ?????????????????????????????????????????????????? | | ?????????????????????????????????????????????????? | | ????????###########??????????????????????????????? | | ????????# ""G"" #??????????????????????????????? | | ????????# "" "" #??????????????????????????????? | | ????????# #??????????????????????????????? | | ????????# ! = #??????????????????????????????? | | ????????# ! #??????????????????????????????? | | ????????# #??????????????????????????????? | | ????????# #????????##########????????????? | | ????????#= ########## #????????????? | | ????????#####/##+### # #????????????? | | ????????????# =#= #????###?????? | | ????????????# %#%= """#???## #????## | | ????????????# g /=!/ """#???##"####### | | ????????##### g #!! """#????# | | ????????# p #* #????# | | ????????# p ! # #????# | | ?######?# p ### #????# | | ?# # R#?##########????# """ | | ?# # p #???????????????# """ | | ?# / #???????????????# """ | | ?# * # ########## ##??????????????# """ | | ?# ###### #! s #??????????????# """ | | ?# ??????# # T #?###########??# """ | | ?######??????# + "" @#?# "" #??# """ | | ?????????????# # #?# S #??# | | ?????????????# # !#?# " #??# | | ?????????????# ?### ###?# #??# | | ?????????##############h#???# #??# | | ?????????# # #???# #??# | | ?????????# # #???# #?## | | ?????????# "" """ # #####! #?## / | | ?????????# ""= """ #%# # # ##"#########/### | | ?????????# ""=[ """ # | | ?????????# "Y[* % | | ?????????# "" | | ?????????# "" [ """ H | | ?????????# "" """ # # # ## ######### | | ?????????# """ # ?#?#####???????# | | ?????????# # #??????????????# | | ?????????# ##??????????????# | | ?????????############## #???????????????# | | ??????????????######??# #???????????????# | | ??????????????? ??# #???????????????+ | | ????????????? ?# #???????????????# ## | | ????????????""" """ ?# #???????????????# #? | | ????????????""" """ # ########????????# #? | | ?????????# """ """ # #????????# #? | | ?????????# + #????????# #? | +----------------------------------------------------+ Best States ------------- Heat Dissipation 123 Coolant Potential 100 Energy Generation 62 Energy Capacity 1510 Matter Stores 700 Matter Capacity 800 Sight Range 25 Terrain Scan Range 20 Terrain Scan Density 10 Jamming Range 16 Cloak Strength 2 Armor Coverage 825 Resistance: KI 30 Resistance: TH 30 Resistance: EX 25 Resistance: EM 15 Core Shielding 30 Evasion (%) 65 Recoil Reduction 2 Item Schematics ----------------- None Robot Schematics ------------------ None Fabricated ------------ Nothing Repaired ---------- Nothing Studied --------- Cmb. Gravmag System | -4/Factory | Hacked Falx | -3/Research | Hacked Xenon Bombardment Thruster | -3/Research | Hacked Impulse Thruster Array | -3/Research | Hacked Alien Tech Used ----------------- None Achievements -------------- None Challenges ------------ None Game ------ Seed WardroneRingAutocannon Manual? 0 Play Time 01:41:52 Cumulative 83.9 hours Start 2026.07.14 @ 10:42:04 End 2026.07.14 @ 12:21:35 Sessions 1 Manual Loads 0 Difficulty Rogue Special Mode None Game No. 96 Rogue 42 Adventurer 54 Explorer 0 Win Type - Total 2 Types 2/0/0/0/0/0/0/0/0/0 Lore% 36 Gallery% 44 Achievement% 42 Wizard Run 0 Options --------- Layout 1 ASCII 0 Keyboard 0 Movement Mouse Keybinds 1 Fullscreen 1 Font 32/Tamsyn Map View 50x35 Zoom Use 0% Tactical HUD 1 Map Filters NONE Filters NONE Steam 1 RUN: 708ecb7e-5a43-45f5-9b85-fcdec8864582